Cogmind - Beta 17 @@@ ROGUE MODE // 2026.07.20 @ 01:45:02 Player: Cereal Killer Result: Destroyed by YI-UF0 with YI-UF0's Doublenader Performance ------------- Evolutions (0) 0 Regions Visited (2) 400 Robots Destroyed (16) 80 Value Destroyed (376) 376 Prototype IDs (0) 0 Alien Tech Used (0) 0 Bonus (-90) -90 TOTAL SCORE: 766 Bonus ------- Friendly Fire -90 Cogmind --------- Core Integrity 0/250 Matter 230/300 Energy 160/160 System Corruption 2% Temperature Cool (0) Movement Core (200) Ox3 Location -10/Mines Parts ------- > --- POWER (1) -------- Light Nuclear Core > --- PROPULSION (2) --- (None) > --- UTILITY (2) ------ Improved Heat Sink Cooling System > --- WEAPON (2) ------- Assault Rifle > --- INVENTORY (5) ---- Wheel Hover Unit Cooling System Field Recycling Unit (0) Grenade Launcher Peak State ------------ > --- POWER ------------ Light Nuclear Core > --- PROPULSION ------- Hover Unit Hover Unit > --- UTILITY ---------- Improved Heat Sink Cooling System > --- WEAPON ----------- Assault Rifle Light Cannon > --- INVENTORY -------- Wheel Cooling System Cooling System Field Recycling Unit Grenade Launcher [Rating: 12] Favorites ----------- Power Ion Engine Engine Ion Engine Power Core Light Nuclear Core Propulsion Hover Unit Wheel Wheel Hover Unit Hover Unit Utility Cooling System Device Cooling System Storage Small Storage Unit Weapon Assault Rifle Energy Gun Medium Laser Ballistic Gun Assault Rifle Ballistic Cannon Light Cannon Launcher Grenade Launcher Build | -11 -10 -10 ------- Run | Yrd Mat Min Slots Evolved . | . . . Power . | . . . Propulsion . | . . . Utility . | . . . Weapon . | . . . Parts Attached 20 | 6 11 3 Power 4 | 1 2 1 Engine 3 | 1 2 . Core 1 | . . 1 Reactor . | . . . Propulsion 5 | 2 3 . Treads . | . . . Leg . | . . . Wheel 2 | 2 . . Hover 3 | . 3 . Flight . | . . . Utility 5 | 1 3 1 Device 3 | . 2 1 Storage 2 | 1 1 . Processor . | . . . Hackware . | . . . Protection . | . . . Artifact . | . . . Weapon 6 | 2 3 1 Energy Gun 2 | 2 . . Energy Cannon . | . . . Ballistic Gun 2 | . 2 . Ballistic Cannon 1 | . . 1 Launcher 1 | . 1 . Special Weapon . | . . . Impact Weapon . | . . . Slashing Weapon . | . . . Piercing Weapon . | . . . Special Melee Weapon . | . . . Unidentified Prototypes . | . . . Parts Lost 5 | . 3 2 Power . | . . . Propulsion 3 | . 2 1 Utility . | . . . Weapon 2 | . 1 1 Highest Loss Streak 2 | . 2 1 To Critical Strikes . | . . . Average Backups 5 | 3 5 4 Power . | . . . Propulsion 2 | 2 2 1 Utility 1 | . . 2 Weapon 1 | . 1 1 Tool/Special . | . . . Unused Backups 6 | . 5 1 Power . | . . . Propulsion 4 | . 4 . Utility 1 | . . 1 Weapon 1 | . 1 . Tool/Special . | . . . Average Slot Usage (%) 79 | . 78 80 Engine 8 | . 13 3 Core 4 | . . 10 Wheel 7 | . 9 4 Hover 17 | . 16 19 Device 9 | . 5 14 Storage 2 | . 4 . Energy Gun 8 | . 15 . Ballistic Gun 11 | . 9 14 Ballistic Cannon 4 | . . 10 Launcher 3 | . 2 4 Peak Build Rating 12 | 6 9 12 Average Rating 6 | 4 5 8 On Entrance 4 | . 6 7 Avg Prop Armor Cover (%) . | . . . Naked Turns . | . . . Heaviest Build 29 | 14 29 12 Greatest Support 26 | 26 26 12 Greatest Overweight (x) 2 | . 2 1 Average Overweight (x) . | . . . Largest Inventory Capacity 15 | 8 15 5 Average Capacity 6 | 7 7 5 Most Carried 8 | 6 8 5 Average Carried 5 | 3 5 4 Final Capacity 8 | 8 5 5 Final Carried 6 | 6 5 5 Class Distribution -------------------- 100% | Mutant Dominant Class ---------------- Mutant | -10/Materials Mutant | -10/Mines Resources | -11 -10 -10 ----------- Run | Yrd Mat Min Matter Collected 599 | 247 96 256 Remotely . | . . . Salvage Created 348 | . 250 98 Parts 26 | . 20 6 Haulers Intercepted 1 | . 1 . Recyclers Shooed . | . . . Parts Field Recycled 8 | . 8 . Retrieved Matter 48 | . 48 . Parts Self-Destructed . | . . . Prevented . | . . . Parts Restored . | . . . Kills | -11 -10 -10 ------- Run | Yrd Mat Min Combat Hostiles Destroyed 18 | . 9 9 Guns 5 | . 4 1 Cannons 5 | . . 5 AOE 8 | . 5 3 Classes Destroyed 5 | . 4 1 Hauler 1 | . 1 . Watcher 1 | . 1 . Swarmer 6 | . 3 3 Grunt 8 | . 6 2 Assembled 4 | . . 4 Best Kill Streak 5 | . 5 3 Combat Bots Only 5 | . 5 3 Max Kills in Single Turn 3 | . 1 3 Gunslinging . | . . . Exploded 3 | . 1 3 Melee . | . . . Uniques/NPCs Destroyed . | . . . Combat | -11 -10 -10 -------- Run | Yrd Mat Min Hostile Shots Fired 111 | . 78 33 Missed 44 | . 28 16 Hits 67 | . 50 17 Melee 1 | . . 1 Projectile 66 | . 50 16 AOE 7 | . . 7 Critical Strikes 1 | . 1 . Damage Taken 980 | . 547 433 Core 258 | . 101 157 Absorbed by Shields . | . . . Core Remaining (%) 100 | 100 . . Volleys Fired 49 | . 26 23 Largest 2 | . 2 2 Hottest 100 | . 100 50 Shots Fired 92 | . 48 44 Gun 63 | . 41 22 Cannon 20 | . . 20 Launcher 9 | . 7 2 Special . | . . . Kinetic 54 | . 12 42 Thermal 29 | . 29 . Explosive 9 | . 7 2 Electromagnetic . | . . . Robot Hit Streak 12 | . 7 12 Robot Miss Streak 3 | . 3 3 Penetration Max . | . . . Secondary Targets 2 | . 2 . Max Gunslinging Chain 1 | . 1 . Shots Hit Robots 55 | . 27 28 Core Hits 32 | . 14 18 Critical Kills . | . . . Critical Parts Destroyed 2 | . . 2 Critical Strikes 3 | . 1 2 Burn 1 | . 1 . Destroy 2 | . . 2 Melee Attacks . | . . . Impact . | . . . Slashing . | . . . Piercing . | . . . Sneak Attacks . | . . . Combat Hostiles . | . . . Follow-up Attacks . | . . . Damage Inflicted 1276 | . 707 569 Guns 418 | . 306 112 Cannons 300 | . . 300 Explosions 558 | . 401 157 Melee . | . . . Ramming . | . . . Kinetic 511 | . 99 412 Thermal 207 | . 207 . Explosive 558 | . 401 157 Electromagnetic . | . . . Impact . | . . . Slashing . | . . . Piercing . | . . . Highest Corruption 2 | . . 2 Average Corruption 2 | . . 2 Corruption Purged . | . . . Corruption Blocked . | . . . Overload Shots . | . . . Overflow Damage 10 | . 10 . Projectiles . | . . . Explosions 10 | . 10 . Melee . | . . . Knockbacks 7 | . . 7 Impact . | . . . Kinetic 7 | . . 7 Secondary . | . . . Self-Inflicted Damage . | . . . Shots . | . . . Rammed . | . . . Targets Rammed . | . . . Kicked . | . . . Crushed . | . . . Highest Temperature 300 | . 300 . Average Temperature 114 | . 114 . Received Heat Transfer 316 | . 243 73 Effects 1 | . 1 . Energy Bleed 1 | . 1 . Siege Activations . | . . . Martial Activations . | . . . Shielding Activations . | . . . Robots Disrupted . | . . . Combat Hostiles . | . . . Robots Corrupted . | . . . Combat Hostiles . | . . . Parts Fried . | . . . Impact Corruptions . | . . . Robots Melted . | . . . Combat Hostiles . | . . . Parts Melted 1 | . 1 . Heat Transferred 666 | . 666 . Parts Sabotaged . | . . . Parts Stolen . | . . . Parts Stripped . | . . . Power Chain Reactions . | . . . Alert | -11 -10 -10 ------- Run | Yrd Mat Min Maximum Alert Level 1 | . 1 . Low Security (%) 99 | 100 99 100 Level 1 . | . . . Level 2 . | . . . Level 3 . | . . . Level 4 . | . . . Level 5 . | . . . High Security . | . . . Max Security . | . . . Peak Influence 205 | . 205 191 Initial 69 | . . 69 Average 83 | . 67 115 Influence Increases 611 | . 439 172 Destroy 0b10 Robot/C 280 | . 180 100 Destroy 0b10 Robot/NC 10 | . 10 . Destroy Leader 74 | . 54 20 Successful Hack 21 | . 21 . Destroy Structure 46 | . 24 22 Lose Combat Pursuer 180 | . 150 30 Influence Decreases 611 | . 260 351 Entered New Map 110 | . . 110 Time Decay 326 | . 156 170 Lost Part 41 | . 30 11 Lost Ally 60 | . . 60 Purge Threat 74 | . 74 . Squads Dispatched 4 | . 4 . Investigation 2 | . 2 . Extermination . | . . . Reinforcement 2 | . 2 . Assault . | . . . Garrison . | . . . Intercept . | . . . Searches Triggered . | . . . Construction Impeded . | . . . Haulers Reinforced . | . . . Active Scanning Responses . | . . . Cargo Convoy Interrupts . | . . . Stealth | -11 -10 -10 --------- Run | Yrd Mat Min Distress Signals 3 | . 3 . Communications Jammed . | . . . Distress Signals . | . . . Times Spotted 38 | . 23 15 Peak Tracking Total 8 | . 8 3 Tactical Retreats 7 | . 4 3 Traps | -11 -10 -10 ------- Run | Yrd Mat Min Traps Triggered 2 | . 2 . Indirectly . | . . . Trap Hack Attempts . | . . . Triggered . | . . . Disarmed . | . . . Reprogrammed . | . . . Reused . | . . . Traps Extracted . | . . . Installed . | . . . Triggered . | . . . Machines | -11 -10 -10 ---------- Run | Yrd Mat Min Machines Disabled . | . . . Max in Single Turn . | . . . Machines Repaired . | . . . Machines Dismantled . | . . . Machines Sabotaged . | . . . Overloaded Fab Kills . | . . . Hacking | -11 -10 -10 --------- Run | Yrd Mat Min Machines Accessed 6 | . 6 . Terminals 6 | . 6 . Fabricators . | . . . Repair Stations . | . . . Recycling Units . | . . . Scanalyzers . | . . . Garrison Access . | . . . Total Hacks 20 | . 20 . Successful 10 | . 10 . Failed 10 | . 10 . Catastrophic 1 | . 1 . Database Lockouts . | . . . Manual 8 | . 8 . Terminals 20 | . 20 . Fabricators . | . . . Repair Stations . | . . . Recycling Units . | . . . Scanalyzers . | . . . Garrison Access . | . . . Terminal Hacks 8 | . 8 . Robot Analysis 1 | . 1 . Branch Access Points 1 | . 1 . Emergency Access Points 1 | . 1 . Scanalyzer Index 1 | . 1 . Alert Level 1 | . 1 . Unreport Threat 1 | . 1 . Locate Traps 2 | . 2 . Fabricator Hacks . | . . . Repair Station Hacks . | . . . Recycling Unit Hacks . | . . . Scanalyzer . | . . . Garrison Access Hacks . | . . . Unauthorized Hacks 2 | . 2 . Terminals 2 | . 2 . Botnet 1 | . 1 . Disrupt 1 | . 1 . Fabricators . | . . . Repair Stations . | . . . Recycling Units . | . . . Scanalyzers . | . . . Garrison Access . | . . . Data Cores Recovered . | . . . Used . | . . . Hacking Detections 5 | . 5 . Full Trace Events 1 | . 1 . Feedback Events . | . . . Feedback Blocked . | . . . Robot Schematics Acquired . | . . . Robots Built . | . . . Authchips . | . . . Time . | . . . Total Robot Build Rating . | . . . Part Schematics Acquired . | . . . Parts Built . | . . . Authchips . | . . . Time . | . . . Total Part Build Rating . | . . . Part Studies Acquired . | . . . Parts Repaired . | . . . Time . | . . . Parts Recycled . | . . . Recycled Matter . | . . . Retrieved Matter . | . . . Retrieved Components . | . . . Parts Scanalyzed . | . . . Part Schematics Acquired . | . . . Parts Damaged . | . . . Bothacking | -11 -10 -10 ------------ Run | Yrd Mat Min Used RIF Installer . | . . . Robots Hacked . | . . . Non-combat . | . . . Combat . | . . . Robot Hacks Applied . | . . . Relay Couplers Released . | . . . Fabnet Peak Effective % . | . . . Robots Rewired . | . . . Allies Hacked . | . . . Hacks Repelled . | . . . Allies | -11 -10 -10 -------- Run | Yrd Mat Min Total Allies 3 | . . 3 Largest Group 3 | . . 3 Highest-Rated Group 40 | . . 40 Highest-Rated Ally 16 | . . 16 Total Orders . | . . . Ally Attacks 12 | . . 12 Total Damage 95 | . . 95 Kills 1 | . . 1 Allies Corrupted . | . . . Allies Melted . | . . . Intel | -11 -10 -10 ------- Run | Yrd Mat Min Active Infowar (turns) . | . . . Robot Analysis Total 1 | . 1 . Derelict Logs Recovered . | . . . Drone Launches . | . . . Drone Recoveries . | . . . Exploration | -11 -10 -10 ------------- Run | Yrd Mat Min Turns Passed 836 | 56 434 346 Spaces Moved 896 | 43 462 391 Core 9 | 9 . . Treads . | . . . Legs . | . . . Wheels 244 | 34 110 100 Hover 643 | . 352 291 Flight . | . . . Fastest Speed 50 | 50 56 56 Average Speed 68 | 81 70 65 Slowest Speed 120 | 90 120 95 Overloaded Moves . | . . . Propulsion Burnouts . | . . . Robots Hopped . | . . . Potential Cave-ins . | . . . Cave-ins Triggered . | . . . Exploration Rate (%) 49 | 3 76 70 Regions Visited 2 Branch Regions 1 Pre-discovered Areas . | . . . Known Exits Taken 1 | . 1 . Unknown Exits Taken 1 | 1 . . Scrap Searched 1 | . . 1 Spaces Dug . | . . . Terrain Destroyed 50 | . 28 22 Melee . | . . . Projectile . | . . . AOE 50 | . 28 22 Terrain Rammed . | . . . Walls Destroyed . | . . . Machines Disabled . | . . . Actions | -11 -10 -10 --------- Run | Yrd Mat Min Total 1026 | 63 525 438 Wait 11 | 3 2 6 Move 894 | 42 461 391 Hop . | . . . Pick Up 27 | 12 12 3 Fast Attach 1 | . . 1 Attach 17 | 6 9 2 Detach 5 | . 2 3 Swap 9 | . 5 4 Drop 13 | . 8 5 Fire 49 | . 26 23 Melee . | . . . Ram . | . . . Kick . | . . . Crush . | . . . Escape Stasis . | . . . Rewire . | . . . Trap . | . . . Miscellaneous . | . . . Route ------- -11/Scrapyard -10/Materials (discovered 4 exits: [*Mat x3] / *Min) -10/Mines (discovered 2 exits: [*Mat x2]) History --------- Turn | Location | Event 26 | -11/Scrapyard | Discovered new exit (range 16) 57 | -11/Scrapyard | Entered Materials 195 | -10/Materials | Discovered new exit (range 15) 249 | -10/Materials | Discovered new exit (range 8) 259 | -10/Materials | Identified exit to Mines 300 | -10/Materials | Discovered new exit (range 15) 316 | -10/Materials | Build established: Mutant 491 | -10/Materials | Entered Mines 496 | -10/Mines | Met a Derelict bent on vengeance 505 | -10/Mines | Assembled infested the area 604 | -10/Mines | Discovered new exit (range 8) 688 | -10/Mines | Core integrity fell below 50% 712 | -10/Mines | Assisted by bots powering up and referring to "LRC-V3" 765 | -10/Mines | Discovered new exit (range 7) 811 | -10/Mines | YI-UF0 nonchalantly dropped a Grenade Launcher on the ground 829 | -10/Mines | Core integrity fell below 20% 837 | -10/Mines | Destroyed by YI-UF0 with YI-UF0's Doublenader Last Messages --------------- 00813_ Acquired Grenade Launcher. 00815_ U-05 Engineer builds a Wall. 00818_ as-97582 destroyed. 00819_ U-05 Engineer lays Concrete. 00820_ U-05 Engineer builds a Wall. 00823_ Dropped Hover Unit. 00825_ U-05 Engineer lays Concrete. 00825_ Acquired Hover Unit. 00826_ U-05 Engineer lays Concrete. 00826_ YI-UF0 knocked back. 00827_ U-05 Engineer builds a Wall. 00828_ YI-UF0 mumbles something. 00828_ YI-UF0: "BOOM TO YOU TOO!" 00828_ Trooper 1b destroyed. 00829_ YI-UF0 knocked back. 00829_ Destroyed Shock Absorption System. 00831_ Trooper 1a destroyed. 00831_ Mercenary 1a destroyed. 00835_ The unstable cave ceiling collapses. 00835_ Lgt. Cannon destroyed. Map ----- +----------------------------------------------------+ | | | | | | | | | ??????????????????????????????? | | ?????????????#####????????????? | | ????????????## ##???????????? | | ???????????## ##??????????? | | ???????????# ##?????????? | | ???????????# #?????????? | | ???????????# #?????????? | | ???????????# #??????????? | | ???????????# #???????????? | | ???????????## ##??????????? | | ????????????# ####???????? | | ????????????# ###?????? | | ???????###??# ###??? | | ??????# ?## #??? | | ?????# ???##### ##?? | | ???## ???????## #?? | | ??# #??????#% ?? | | ?# #???## g[%== ##? | | # #??# #######% % ## | | #???# | | #?????# # | | #?????## # @ | | ##??????#??## = | | ##?????????## # | | #????#####?## ## | | #????# #??## ##? | | ###### #???# ### #?? | | ### #???# ??# ###?? | | ### ##??# #### #???? | | #?# #??## #???? | | ### #??## ##### #???? | | #???# ##### ###?? | | ##### ##??# ## #?? | | ????## #??# ## #?? | | ?????## ## #### ## #?? | | ??????# ### ## ## < #?? | | ??????# #?###### ## ## #?? | | ??????# #??????# ## #########?? | | ??????# ######## ## #?????????? | | ??????#% ## ##????????? | | ?###### ### ###### ##???????? | | ?# % #?# #????# #???????? | | ?# ######?# #???# #??????? | | ??????????# #???# #??????? | | ??????????# #???## ##??????? | | ??????????# #????######???????? | +----------------------------------------------------+ Best States ------------- Heat Dissipation 61 Energy Generation 14 Energy Capacity 250 Matter Stores 300 Matter Capacity 300 Sight Range 16 Terrain Scan Density 10 Evasion (%) 53 Item Schematics ----------------- None Robot Schematics ------------------ None Fabricated ------------ Nothing Repaired ---------- Nothing Studied --------- None Alien Tech Used ----------------- None Achievements -------------- None Challenges ------------ None Game ------ Seed FocalSystemAssimilator Manual? 0 Play Time 00:17:01 Cumulative 327.8 hours Start 2026.07.19 @ 04:37:19 End 2026.07.20 @ 01:45:02 Sessions 3 Manual Loads 0 Difficulty Rogue Special Mode None Game No. 252 Rogue 243 Adventurer 9 Explorer 0 Win Type - Total 4 Types 3/0/0/1/0/0/0/0/0/0 Lore% 87 Gallery% 71 Achievement% 50 Wizard Run 0 Options --------- Layout 1 ASCII 0 Keyboard 0 Movement Numpad Keybinds 0 Fullscreen 1 Font 24/Smallcaps Map View 50x35 Zoom Use 0% Tactical HUD 1 Map Filters NONE Filters NONE Steam 1 RUN: fef1965d-2c17-4184-b5f6-8015a426e826